[Event "Early-Titled-Tuesday-Blitz-June-18-2024"]
[Site "Chess.com"]
[Date "2024.06.18"]
[Round "1"]
[White "elamier"]
[Black "KNVB"]
[Result "0-1"]
[WhiteElo "2466"]
[BlackElo "2817"]
[TimeControl "180+1"]
[EndTime "8:08:06 PDT"]
[Termination "KNVB won by resignation"]

1. d4 {[%clk 0:03:00.9]} 1... e5 {[%clk 0:02:54.4]} 2. dxe5 {[%clk 0:02:57.9]}
2... Nc6 {[%clk 0:02:50.1]} 3. Nf3 {[%clk 0:02:57.8]} 3... Qe7 {[%clk
0:02:48.3]} 4. g3 {[%clk 0:02:37.4]} 4... Nxe5 {[%clk 0:02:43.7]} 5. Nxe5 {[%clk
0:02:30.7]} 5... Qxe5 {[%clk 0:02:44.6]} 6. Bg2 {[%clk 0:02:31.4]} 6... Bc5
{[%clk 0:02:39.3]} 7. O-O {[%clk 0:02:30.7]} 7... d6 {[%clk 0:02:22.5]} 8. Nd2
{[%clk 0:02:16.3]} 8... Nf6 {[%clk 0:02:12.6]} 9. Nc4 {[%clk 0:02:13.2]} 9...
Qh5 {[%clk 0:01:46.2]} 10. Be3 {[%clk 0:01:53.6]} 10... Ng4 {[%clk 0:01:37.4]}
11. h4 {[%clk 0:01:31.8]} 11... Nxe3 {[%clk 0:01:06.8]} 12. Nxe3 {[%clk
0:01:30]} 12... Bxe3 {[%clk 0:01:00.3]} 13. fxe3 {[%clk 0:01:30.9]} 13... Qe5
{[%clk 0:01:00.3]} 14. Qd4 {[%clk 0:01:04.4]} 14... Qxg3 {[%clk 0:00:48]} 15.
Rf3 {[%clk 0:01:04.1]} 15... Qe5 {[%clk 0:00:47.5]} 16. Qa4+ {[%clk 0:00:55.8]}
16... Bd7 {[%clk 0:00:47.5]} 17. Qb3 {[%clk 0:00:54.1]} 17... Be6 {[%clk
0:00:10.4]} 18. Qxb7 {[%clk 0:00:34.4]} 18... Bd5 {[%clk 0:00:10.7]} 19. Qb5+
{[%clk 0:00:35.1]} 19... c6 {[%clk 0:00:11.5]} 20. Qb7 {[%clk 0:00:35.8]} 20...
O-O {[%clk 0:00:12.2]} 21. Rh3 {[%clk 0:00:24.6]} 21... Rab8 {[%clk 0:00:12.2]}
22. Qxa7 {[%clk 0:00:22.9]} 22... Bxg2 {[%clk 0:00:12.3]} 23. Kxg2 {[%clk
0:00:22.8]} 23... Qe4+ {[%clk 0:00:09]} 24. Kf2 {[%clk 0:00:19.8]} 24... Rxb2
{[%clk 0:00:04.3]} 25. Rc1 {[%clk 0:00:10.5]} 25... Qf5+ {[%clk 0:00:01.7]} 26.
Rf3 {[%clk 0:00:11]} 26... Qg4 {[%clk 0:00:02.1]} 27. Qd4 {[%clk 0:00:05.3]}
27... Qxd4 {[%clk 0:00:02.5]} 28. exd4 {[%clk 0:00:05.2]} 28... Rxa2 {[%clk
0:00:03.4]} 29. c4 {[%clk 0:00:04.9]} 29... Re8 {[%clk 0:00:03.2]} 30. Re3
{[%clk 0:00:05.6]} 30... Rxe3 {[%clk 0:00:02.4]} 31. Kxe3 {[%clk 0:00:06.5]}
31... Kf8 {[%clk 0:00:02.2]} 32. Rb1 {[%clk 0:00:05.5]} 32... Ke7 {[%clk
0:00:01.4]} 33. Rb7+ {[%clk 0:00:05.7]} 33... Ke6 {[%clk 0:00:01.8]} 34. Rc7
{[%clk 0:00:06.6]} 34... Ra3+ {[%clk 0:00:01.5]} 35. Kf2 {[%clk 0:00:06.3]}
35... Ra6 {[%clk 0:00:02.2]} 36. e4 {[%clk 0:00:03.7]} 36... g6 {[%clk
0:00:02.2]} 37. Kf3 {[%clk 0:00:03.9]} 37... h6 {[%clk 0:00:01.9]} 38. Kf4
{[%clk 0:00:03.6]} 38... f5 {[%clk 0:00:01.2]} 39. d5+ {[%clk 0:00:02.7]} 39...
cxd5 {[%clk 0:00:01.3]} 40. exd5+ {[%clk 0:00:03.6]} 40... Kf6 {[%clk
0:00:01.5]} 41. Rc8 {[%clk 0:00:03.2]} 41... g5+ {[%clk 0:00:02]} 42. hxg5+
{[%clk 0:00:03.9]} 42... hxg5+ {[%clk 0:00:02.9]} 43. Kf3 {[%clk 0:00:04.3]}
43... Ra3+ {[%clk 0:00:03.2]} 44. Ke2 {[%clk 0:00:04.1]} 44... g4 {[%clk
0:00:03.4]} 45. Rd8 {[%clk 0:00:04]} 45... Ke5 {[%clk 0:00:03.1]} 46. Re8+
{[%clk 0:00:04.5]} 46... Kd4 {[%clk 0:00:03.3]} 47. Rf8 {[%clk 0:00:05]} 47...
Rf3 {[%clk 0:00:02]} 48. Rf6 {[%clk 0:00:04.3]} 48... Kc5 {[%clk 0:00:01.4]} 49.
Re6 {[%clk 0:00:01.9]} 49... Rf4 {[%clk 0:00:01.8]} 50. Rf6 {[%clk 0:00:02.3]}
50... Rxc4 {[%clk 0:00:01.5]} 51. Rxf5 {[%clk 0:00:02.5]} 51... Rd4 {[%clk
0:00:01.9]} 52. Rg5 {[%clk 0:00:02.9]} 52... Kc4 {[%clk 0:00:01.4]} 53. Rg6
{[%clk 0:00:03.1]} 53... Kxd5 {[%clk 0:00:01.5]} 54. Rxg4 {[%clk 0:00:03.8]}
54... Rxg4 {[%clk 0:00:01.8]} 0-1

[Event "Early-Titled-Tuesday-Blitz-June-18-2024"]
[Site "Chess.com"]
[Date "2024.06.18"]
[Round "1"]
[White "Chempiblinka"]
[Black "Goryachkina"]
[Result "0-1"]
[WhiteElo "2363"]
[BlackElo "2678"]
[TimeControl "180+1"]
[EndTime "8:08:06 PDT"]
[Termination "Goryachkina won on time"]

1. Nf3 {[%clk 0:02:58.5]} 1... d5 {[%clk 0:02:56.3]} 2. g3 {[%clk 0:02:59.2]}
2... Nf6 {[%clk 0:02:55.2]} 3. Bg2 {[%clk 0:02:59.9]} 3... g6 {[%clk 0:02:55.2]}
4. O-O {[%clk 0:02:59.8]} 4... Bg7 {[%clk 0:02:55.2]} 5. c4 {[%clk 0:03:00]}
5... d4 {[%clk 0:02:50.2]} 6. d3 {[%clk 0:02:58.6]} 6... O-O {[%clk 0:02:48.8]}
7. e3 {[%clk 0:02:42.7]} 7... Nc6 {[%clk 0:02:41.1]} 8. exd4 {[%clk 0:02:34.9]}
8... Nxd4 {[%clk 0:02:40.9]} 9. Nxd4 {[%clk 0:02:26.8]} 9... Qxd4 {[%clk
0:02:41.8]} 10. Nc3 {[%clk 0:02:14.9]} 10... c6 {[%clk 0:02:39.9]} 11. Be3
{[%clk 0:02:07.7]} 11... Qd8 {[%clk 0:02:39.7]} 12. h3 {[%clk 0:02:05.5]} 12...
Be6 {[%clk 0:02:31.2]} 13. Rc1 {[%clk 0:01:35.4]} 13... Qd7 {[%clk 0:02:28.3]}
14. Kh2 {[%clk 0:01:01.1]} 14... Rfd8 {[%clk 0:02:27.6]} 15. Na4 {[%clk
0:00:56.2]} 15... b6 {[%clk 0:02:22.7]} 16. d4 {[%clk 0:00:45.3]} 16... Rac8
{[%clk 0:02:22.4]} 17. Qe2 {[%clk 0:00:40.7]} 17... h5 {[%clk 0:02:16.1]} 18. b3
{[%clk 0:00:37.8]} 18... Bf5 {[%clk 0:02:12.9]} 19. Rfd1 {[%clk 0:00:37.5]}
19... Be4 {[%clk 0:01:51.1]} 20. Nc3 {[%clk 0:00:30.2]} 20... Bxg2 {[%clk
0:01:50.3]} 21. Kxg2 {[%clk 0:00:31.1]} 21... Qf5 {[%clk 0:01:13.8]} 22. Qf3
{[%clk 0:00:25.9]} 22... Qxf3+ {[%clk 0:01:13.5]} 23. Kxf3 {[%clk 0:00:26.4]}
23... e6 {[%clk 0:01:13.8]} 24. Ne4 {[%clk 0:00:19.9]} 24... Nxe4 {[%clk
0:01:07.5]} 25. Kxe4 {[%clk 0:00:20.8]} 25... Rd7 {[%clk 0:01:05.9]} 26. Bg5
{[%clk 0:00:19]} 26... f6 {[%clk 0:01:00.4]} 27. Be3 {[%clk 0:00:17.6]} 27...
Rcd8 {[%clk 0:01:00.5]} 28. Kf3 {[%clk 0:00:12.6]} 28... f5 {[%clk 0:00:55.4]}
29. Rd2 {[%clk 0:00:10]} 29... Bxd4 {[%clk 0:00:47.2]} 30. Bxd4 {[%clk
0:00:09.7]} 30... Rxd4 {[%clk 0:00:47]} 31. Re2 {[%clk 0:00:10.5]} 31... Kf7
{[%clk 0:00:44.4]} 32. Rce1 {[%clk 0:00:10.8]} 32... R8d6 {[%clk 0:00:44.3]} 33.
h4 {[%clk 0:00:11.4]} 33... Kf6 {[%clk 0:00:38]} 34. Kg2 {[%clk 0:00:11.5]}
34... Rd2 {[%clk 0:00:36.4]} 35. Kf3 {[%clk 0:00:11]} 35... R6d3+ {[%clk
0:00:30]} 36. Kg2 {[%clk 0:00:11.4]} 36... Rxe2 {[%clk 0:00:30.2]} 37. Rxe2
{[%clk 0:00:11.7]} 37... e5 {[%clk 0:00:30.6]} 38. Kf1 {[%clk 0:00:11.2]} 38...
e4 {[%clk 0:00:30.7]} 39. Kg2 {[%clk 0:00:11.1]} 39... Ke5 {[%clk 0:00:29.9]}
40. Rc2 {[%clk 0:00:10.9]} 40... c5 {[%clk 0:00:28.9]} 41. Re2 {[%clk
0:00:10.5]} 41... Kd4 {[%clk 0:00:29.1]} 42. Rc2 {[%clk 0:00:09.8]} 42... a6
{[%clk 0:00:26]} 43. Kf1 {[%clk 0:00:10.1]} 43... b5 {[%clk 0:00:22.6]} 44. cxb5
{[%clk 0:00:10.1]} 44... axb5 {[%clk 0:00:22.8]} 45. Ke2 {[%clk 0:00:10.6]}
45... c4 {[%clk 0:00:18.1]} 46. bxc4 {[%clk 0:00:09.9]} 46... bxc4 {[%clk
0:00:18.3]} 47. Rb2 {[%clk 0:00:07]} 47... Ra3 {[%clk 0:00:18]} 48. Rc2 {[%clk
0:00:06.6]} 48... c3 {[%clk 0:00:17.6]} 49. f3 {[%clk 0:00:02.3]} 49... exf3+
{[%clk 0:00:17.2]} 50. Kxf3 {[%clk 0:00:02.8]} 50... Kd3 {[%clk 0:00:17.5]} 51.
Re2 {[%clk 0:00:01.2]} 51... c2 {[%clk 0:00:14.2]} 0-1

[Event "Early-Titled-Tuesday-Blitz-June-18-2024"]
[Site "Chess.com"]
[Date "2024.06.18"]
[Round "1"]
[White "ozates"]
[Black "NigiriSushies"]
[Result "1-0"]
[WhiteElo "2627"]
[BlackElo "2290"]
[TimeControl "180+1"]
[EndTime "8:08:07 PDT"]
[Termination "ozates won by checkmate"]

1. e4 {[%clk 0:02:59.8]} 1... c5 {[%clk 0:03:00.3]} 2. Nf3 {[%clk 0:02:59.5]}
2... d6 {[%clk 0:03:00.5]} 3. d4 {[%clk 0:02:57.1]} 3... cxd4 {[%clk 0:03:01.4]}
4. Nxd4 {[%clk 0:02:57.9]} 4... Nf6 {[%clk 0:03:01.3]} 5. Nc3 {[%clk 0:02:58.6]}
5... a6 {[%clk 0:02:59.4]} 6. g3 {[%clk 0:02:57.1]} 6... h5 {[%clk 0:02:55.8]}
7. h3 {[%clk 0:02:55.8]} 7... h4 {[%clk 0:02:55.8]} 8. g4 {[%clk 0:02:56]} 8...
b5 {[%clk 0:02:54.3]} 9. Bg2 {[%clk 0:02:56.1]} 9... Bb7 {[%clk 0:02:54.3]} 10.
O-O {[%clk 0:02:52.9]} 10... Nbd7 {[%clk 0:02:54.2]} 11. Re1 {[%clk 0:02:52.7]}
11... e5 {[%clk 0:02:53.3]} 12. Nf5 {[%clk 0:02:52.5]} 12... Qc7 {[%clk
0:02:50.7]} 13. a4 {[%clk 0:02:48]} 13... b4 {[%clk 0:02:50.5]} 14. Na2 {[%clk
0:02:47.8]} 14... g6 {[%clk 0:02:47.6]} 15. Ne3 {[%clk 0:02:44.5]} 15... a5
{[%clk 0:02:48]} 16. c3 {[%clk 0:02:44.6]} 16... Qb6 {[%clk 0:02:23.1]} 17. cxb4
{[%clk 0:02:43.5]} 17... axb4 {[%clk 0:02:24]} 18. Nc4 {[%clk 0:02:42.7]} 18...
Qc5 {[%clk 0:02:16.5]} 19. b3 {[%clk 0:02:42.3]} 19... Rxa4 {[%clk 0:01:44.6]}
20. Be3 {[%clk 0:02:33.8]} 20... Qc7 {[%clk 0:01:38.9]} 21. bxa4 {[%clk
0:02:22]} 21... Qxc4 {[%clk 0:01:38.5]} 22. Nc1 {[%clk 0:02:12.2]} 22... Nxe4
{[%clk 0:01:34.2]} 23. Qd3 {[%clk 0:02:02.1]} 23... Qxd3 {[%clk 0:00:59]} 24.
Nxd3 {[%clk 0:02:03]} 24... d5 {[%clk 0:00:58.8]} 25. Rac1 {[%clk 0:01:39.9]}
25... f5 {[%clk 0:00:47]} 26. Rc7 {[%clk 0:01:39]} 26... Ba6 {[%clk 0:00:46.5]}
27. Bxe4 {[%clk 0:01:20.4]} 27... fxe4 {[%clk 0:00:40.6]} 28. Nc5 {[%clk
0:01:16.2]} 28... Nxc5 {[%clk 0:00:28.5]} 29. Bxc5 {[%clk 0:01:16.5]} 29... Bc4
{[%clk 0:00:22.7]} 30. a5 {[%clk 0:01:08.4]} 30... Bxc5 {[%clk 0:00:15.8]} 31.
Rc8+ {[%clk 0:01:02]} 31... Kd7 {[%clk 0:00:15.2]} 32. Rxh8 {[%clk 0:01:02.9]}
32... b3 {[%clk 0:00:14.3]} 33. Rb1 {[%clk 0:00:56]} 33... e3 {[%clk 0:00:12.5]}
34. fxe3 {[%clk 0:00:54.9]} 34... Bxe3+ {[%clk 0:00:13]} 35. Kg2 {[%clk
0:00:52.3]} 35... e4 {[%clk 0:00:10.8]} 36. Rb8 {[%clk 0:00:49.5]} 36... Bd2
{[%clk 0:00:08]} 37. a6 {[%clk 0:00:39.5]} 37... Bxa6 {[%clk 0:00:05.6]} 38.
R8xb3 {[%clk 0:00:40]} 38... g5 {[%clk 0:00:04.2]} 39. Rd1 {[%clk 0:00:36.7]}
39... Bc4 {[%clk 0:00:02.7]} 40. Rb2 {[%clk 0:00:29.4]} 40... Bf4 {[%clk
0:00:02.5]} 41. Rb7+ {[%clk 0:00:28.2]} 41... Kc6 {[%clk 0:00:02.6]} 42. Rg7
{[%clk 0:00:28.6]} 42... Kc5 {[%clk 0:00:02.8]} 43. Rg8 {[%clk 0:00:28.1]} 43...
Be2 {[%clk 0:00:03.2]} 44. Re1 {[%clk 0:00:27.8]} 44... Bf3+ {[%clk 0:00:03.3]}
45. Kg1 {[%clk 0:00:27.1]} 45... Kd4 {[%clk 0:00:03.6]} 46. Ra8 {[%clk
0:00:26.7]} 46... Be3+ {[%clk 0:00:03.8]} 47. Kf1 {[%clk 0:00:26.2]} 47... Bf4
{[%clk 0:00:03.8]} 48. Ra4+ {[%clk 0:00:26.6]} 48... Ke5 {[%clk 0:00:04.2]} 49.
Ra5 {[%clk 0:00:26.1]} 49... Bg3 {[%clk 0:00:04.4]} 50. Rc1 {[%clk 0:00:24.8]}
50... e3 {[%clk 0:00:04.5]} 51. Ra2 {[%clk 0:00:24.1]} 51... d4 {[%clk
0:00:03.6]} 52. Rc8 {[%clk 0:00:17.7]} 52... d3 {[%clk 0:00:02.5]} 53. Re8+
{[%clk 0:00:18.4]} 53... Kd4 {[%clk 0:00:02.4]} 54. Rd8+ {[%clk 0:00:18.3]}
54... Ke4 {[%clk 0:00:02.3]} 55. Re8+ {[%clk 0:00:18.3]} 55... Kf4 {[%clk
0:00:02.5]} 56. Ra4+ {[%clk 0:00:18.6]} 56... Be4 {[%clk 0:00:02.9]} 57. Raxe4+
{[%clk 0:00:17.2]} 57... Kf3 {[%clk 0:00:03.6]} 58. Rxe3+ {[%clk 0:00:17.6]}
58... Kf4 {[%clk 0:00:04.5]} 59. R8e4# {[%clk 0:00:17.1]} 1-0

[Event "Early-Titled-Tuesday-Blitz-June-18-2024"]
[Site "Chess.com"]
[Date "2024.06.18"]
[Round "1"]
[White "patzer-reloaded"]
[Black "DominguezOnYoutube"]
[Result "0-1"]
[WhiteElo "2504"]
[BlackElo "2902"]
[TimeControl "180+1"]
[EndTime "8:08:10 PDT"]
[Termination "DominguezOnYoutube won on time"]

1. d3 {[%clk 0:03:00.9]} 1... e5 {[%clk 0:02:59]} 2. Nf3 {[%clk 0:02:59.9]} 2...
Nc6 {[%clk 0:02:57.7]} 3. g3 {[%clk 0:03:00]} 3... d5 {[%clk 0:02:56.7]} 4. Bg2
{[%clk 0:02:59.9]} 4... Nf6 {[%clk 0:02:57.1]} 5. O-O {[%clk 0:02:59.3]} 5...
Bc5 {[%clk 0:02:56.7]} 6. Nxe5 {[%clk 0:02:58.4]} 6... Nxe5 {[%clk 0:02:54.8]}
7. d4 {[%clk 0:02:58]} 7... Bd6 {[%clk 0:02:55.4]} 8. dxe5 {[%clk 0:02:58.3]}
8... Bxe5 {[%clk 0:02:56.3]} 9. c4 {[%clk 0:02:58.4]} 9... dxc4 {[%clk
0:02:49.2]} 10. Qxd8+ {[%clk 0:02:56.9]} 10... Kxd8 {[%clk 0:02:48.5]} 11. Rd1+
{[%clk 0:02:43.9]} 11... Ke7 {[%clk 0:02:42.7]} 12. Na3 {[%clk 0:02:29.7]} 12...
Be6 {[%clk 0:02:28.3]} 13. Bd2 {[%clk 0:01:53.6]} 13... c6 {[%clk 0:01:53]} 14.
Bb4+ {[%clk 0:01:37]} 14... Ke8 {[%clk 0:01:53.5]} 15. Rd2 {[%clk 0:01:27.2]}
15... a5 {[%clk 0:01:31.3]} 16. Bc3 {[%clk 0:00:58.6]} 16... Bxc3 {[%clk
0:01:30]} 17. bxc3 {[%clk 0:00:59.5]} 17... Ra6 {[%clk 0:01:04.4]} 18. Rb1
{[%clk 0:00:33.8]} 18... b5 {[%clk 0:01:03.3]} 19. Nxb5 {[%clk 0:00:22.7]} 19...
cxb5 {[%clk 0:00:58.7]} 20. Rxb5 {[%clk 0:00:23.6]} 20... Ke7 {[%clk 0:00:47.2]}
21. Rb7+ {[%clk 0:00:22.8]} 21... Nd7 {[%clk 0:00:45.7]} 22. f4 {[%clk 0:00:07]}
22... g6 {[%clk 0:00:40.4]} 23. e4 {[%clk 0:00:06]} 23... Rd6 {[%clk 0:00:39.8]}
24. Rxd6 {[%clk 0:00:02.7]} 24... Kxd6 {[%clk 0:00:40.7]} 25. e5+ {[%clk
0:00:02.8]} 25... Ke7 {[%clk 0:00:40.4]} 26. Bc6 {[%clk 0:00:02.9]} 26... Rc8
{[%clk 0:00:33.5]} 27. Bb5 {[%clk 0:00:02.2]} 27... Rb8 {[%clk 0:00:32.1]} 28.
Rxb8 {[%clk 0:00:02.1]} 28... Nxb8 {[%clk 0:00:31.7]} 29. Kf2 {[%clk 0:00:03]}
29... Bd5 {[%clk 0:00:18.2]} 30. Ke3 {[%clk 0:00:02.8]} 30... Nc6 {[%clk
0:00:18.9]} 31. Bxc6 {[%clk 0:00:01.9]} 31... Bxc6 {[%clk 0:00:18.8]} 32. Kd4
{[%clk 0:00:02.8]} 32... Bd7 {[%clk 0:00:12.7]} 33. a3 {[%clk 0:00:01.9]} 33...
Be6 {[%clk 0:00:11.1]} 34. Kc5 {[%clk 0:00:02.1]} 34... Kd7 {[%clk 0:00:11.3]}
35. Kb5 {[%clk 0:00:02.3]} 35... h5 {[%clk 0:00:09.6]} 36. Kxa5 {[%clk
0:00:02.1]} 36... Kc6 {[%clk 0:00:09.9]} 37. Kb4 {[%clk 0:00:02.1]} 37... Kb6
{[%clk 0:00:06.7]} 38. h4 {[%clk 0:00:02.7]} 38... Kc6 {[%clk 0:00:05.3]} 39. a4
{[%clk 0:00:03.3]} 39... Kb6 {[%clk 0:00:05.7]} 40. a5+ {[%clk 0:00:03.1]} 40...
Ka6 {[%clk 0:00:06.1]} 41. Ka4 {[%clk 0:00:04]} 41... Bd5 {[%clk 0:00:05.5]} 42.
Kb4 {[%clk 0:00:04.9]} 42... Be6 {[%clk 0:00:04.1]} 43. Ka4 {[%clk 0:00:04.9]}
43... Bf5 {[%clk 0:00:04.4]} 44. Kb4 {[%clk 0:00:05.4]} 44... Bc8 {[%clk
0:00:03.5]} 45. Kxc4 {[%clk 0:00:05.2]} 45... Kxa5 {[%clk 0:00:03.6]} 46. Kc5
{[%clk 0:00:06.1]} 46... Be6 {[%clk 0:00:03.8]} 47. c4 {[%clk 0:00:01.8]} 47...
Ka4 {[%clk 0:00:03.9]} 48. Kd6 {[%clk 0:00:01.8]} 48... Bxc4 {[%clk 0:00:03.6]}
49. Ke7 {[%clk 0:00:01.2]} 49... Be6 {[%clk 0:00:03.3]} 50. Kf6 {[%clk
0:00:01.2]} 50... Kb4 {[%clk 0:00:03.2]} 51. f5 {[%clk 0:00:01.7]} 51... gxf5
{[%clk 0:00:02.9]} 52. Kg5 {[%clk 0:00:01.8]} 52... Kc5 {[%clk 0:00:02.5]} 53.
Kxh5 {[%clk 0:00:02.7]} 53... Kd5 {[%clk 0:00:02.6]} 54. Kg5 {[%clk 0:00:03.1]}
54... Kxe5 {[%clk 0:00:02.4]} 55. h5 {[%clk 0:00:03.6]} 55... f6+ {[%clk
0:00:02.6]} 56. Kg6 {[%clk 0:00:03.3]} 56... Bc4 {[%clk 0:00:01.9]} 57. h6
{[%clk 0:00:01]} 57... Bd3 {[%clk 0:00:02.5]} 0-1

[Event "Early-Titled-Tuesday-Blitz-June-18-2024"]
[Site "Chess.com"]
[Date "2024.06.18"]
[Round "1"]
[White "SirStrateg"]
[Black "Larina_Maria"]
[Result "1-0"]
[WhiteElo "2680"]
[BlackElo "2365"]
[TimeControl "180+1"]
[EndTime "8:08:10 PDT"]
[Termination "SirStrateg won by resignation"]

1. d4 {[%clk 0:03:00.9]} 1... f5 {[%clk 0:02:59.7]} 2. Bg5 {[%clk 0:02:59.5]}
2... g6 {[%clk 0:02:58.4]} 3. h4 {[%clk 0:02:58.6]} 3... h6 {[%clk 0:02:56.8]}
4. Bf4 {[%clk 0:02:59]} 4... Nf6 {[%clk 0:02:57.4]} 5. Nc3 {[%clk 0:02:58.8]}
5... Bg7 {[%clk 0:02:52.9]} 6. e3 {[%clk 0:02:58.9]} 6... d6 {[%clk 0:02:51.8]}
7. Bc4 {[%clk 0:02:58.4]} 7... e6 {[%clk 0:02:51.2]} 8. Qe2 {[%clk 0:02:51.1]}
8... O-O {[%clk 0:02:48.6]} 9. Nf3 {[%clk 0:02:45.2]} 9... Nc6 {[%clk
0:02:42.1]} 10. O-O-O {[%clk 0:02:43]} 10... Qe7 {[%clk 0:02:38.1]} 11. d5
{[%clk 0:02:41.6]} 11... Nd8 {[%clk 0:02:38]} 12. dxe6 {[%clk 0:02:40.8]} 12...
Bxe6 {[%clk 0:02:35.3]} 13. Nd4 {[%clk 0:02:37.1]} 13... Bxc4 {[%clk 0:02:20.3]}
14. Qxc4+ {[%clk 0:02:37.2]} 14... Qf7 {[%clk 0:02:12.5]} 15. Qxf7+ {[%clk
0:02:16.7]} 15... Rxf7 {[%clk 0:02:13.4]} 16. f3 {[%clk 0:02:16.3]} 16... Nh5
{[%clk 0:02:07.8]} 17. Bh2 {[%clk 0:02:13.3]} 17... Nc6 {[%clk 0:02:01.1]} 18.
g4 {[%clk 0:02:01.7]} 18... fxg4 {[%clk 0:01:59.6]} 19. fxg4 {[%clk 0:02:02.6]}
19... Nf6 {[%clk 0:01:52.5]} 20. Rhg1 {[%clk 0:01:54.9]} 20... Re8 {[%clk
0:01:45.7]} 21. g5 {[%clk 0:01:51.3]} 21... hxg5 {[%clk 0:01:33.2]} 22. Nxc6
{[%clk 0:01:37.4]} 22... bxc6 {[%clk 0:01:32.1]} 23. Rxg5 {[%clk 0:01:33.3]}
23... Kh7 {[%clk 0:01:26]} 24. Rdg1 {[%clk 0:01:30.4]} 24... Rxe3 {[%clk
0:01:24.8]} 25. Rxg6 {[%clk 0:01:26.2]} 25... Rh3 {[%clk 0:01:23.6]} 26. R6g2
{[%clk 0:01:18.7]} 26... Rxh4 {[%clk 0:01:22]} 27. Bg3 {[%clk 0:01:06.3]} 27...
Bh6+ {[%clk 0:01:20.3]} 28. Kb1 {[%clk 0:01:04.6]} 28... Rh3 {[%clk 0:01:16.8]}
29. Bf2 {[%clk 0:01:02.3]} 29... a6 {[%clk 0:01:12]} 30. Bd4 {[%clk 0:01:02]}
30... Rf3 {[%clk 0:01:09.9]} 31. Bxf6 {[%clk 0:00:46.8]} 31... R3xf6 {[%clk
0:01:08]} 32. a3 {[%clk 0:00:46.7]} 32... Rf1+ {[%clk 0:01:01.8]} 33. Rxf1
{[%clk 0:00:46.1]} 33... Rxf1+ {[%clk 0:01:02.7]} 34. Ka2 {[%clk 0:00:46.8]}
34... Bg7 {[%clk 0:00:54.3]} 35. Ne4 {[%clk 0:00:46.1]} 35... d5 {[%clk
0:00:36.5]} 36. Ng5+ {[%clk 0:00:44.3]} 36... Kh6 {[%clk 0:00:36.1]} 37. Ne6
{[%clk 0:00:43.7]} 37... Be5 {[%clk 0:00:33.5]} 38. Nd8 {[%clk 0:00:38.9]} 38...
c5 {[%clk 0:00:25.4]} 39. Nc6 {[%clk 0:00:31.1]} 39... Bd6 {[%clk 0:00:20.5]}
40. Rd2 {[%clk 0:00:30.4]} 40... d4 {[%clk 0:00:19.7]} 41. Na5 {[%clk
0:00:27.8]} 41... Rf6 {[%clk 0:00:18.9]} 42. Rg2 {[%clk 0:00:26.4]} 42... Rg6
{[%clk 0:00:18.6]} 43. Rf2 {[%clk 0:00:25.4]} 43... Kg7 {[%clk 0:00:18.5]} 44.
Nc4 {[%clk 0:00:25.5]} 44... Rf6 {[%clk 0:00:17.6]} 45. Re2 {[%clk 0:00:25.5]}
45... Kf7 {[%clk 0:00:17.8]} 46. Kb3 {[%clk 0:00:23.3]} 46... Re6 {[%clk
0:00:17.5]} 47. Rg2 {[%clk 0:00:22.9]} 47... Ke7 {[%clk 0:00:18.1]} 48. Rg7+
{[%clk 0:00:23]} 48... Kf8 {[%clk 0:00:17.7]} 49. Rh7 {[%clk 0:00:23.1]} 49...
Ke8 {[%clk 0:00:16.6]} 50. Rh8+ {[%clk 0:00:23]} 50... Kd7 {[%clk 0:00:16.7]}
51. Ra8 {[%clk 0:00:23.3]} 51... Be7 {[%clk 0:00:16.8]} 52. Ka4 {[%clk
0:00:20.6]} 52... Re2 {[%clk 0:00:11.3]} 53. Kb3 {[%clk 0:00:20.5]} 53... Re6
{[%clk 0:00:11]} 54. a4 {[%clk 0:00:19.2]} 54... Re3+ {[%clk 0:00:09.8]} 55.
Nxe3 {[%clk 0:00:18.6]} 55... dxe3 {[%clk 0:00:10.7]} 56. Kc3 {[%clk 0:00:18.8]}
56... Bh4 {[%clk 0:00:08.8]} 57. Kd3 {[%clk 0:00:18.9]} 57... Bf2 {[%clk
0:00:09.2]} 58. Rxa6 {[%clk 0:00:18.6]} 58... c6 {[%clk 0:00:09.8]} 59. Ra7+
{[%clk 0:00:18.5]} 59... Kd6 {[%clk 0:00:10.4]} 60. Rh7 {[%clk 0:00:17.5]} 60...
Kd5 {[%clk 0:00:11.1]} 61. c4+ {[%clk 0:00:17.4]} 61... Ke5 {[%clk 0:00:11]} 62.
Re7+ {[%clk 0:00:17.7]} 62... Kf4 {[%clk 0:00:11.6]} 63. a5 {[%clk 0:00:17.5]}
63... Kf3 {[%clk 0:00:11.8]} 64. a6 {[%clk 0:00:17.3]} 64... Bg3 {[%clk
0:00:11]} 65. Rxe3+ {[%clk 0:00:16.9]} 1-0